fUSD/lending_fUSD_20260205
["ID","MTS","AMOUNT","RATE_DAILY","PERIOD"]
[404603414,1770325842701,-829.94,0.00034757,120]
[404603415,1770325842711,-829.94,0.00034757,120]
[404603416,1770325842720,-829.94,0.00034757,120]
[404603417,1770325842729,-829.94,0.00034757,120]
[404603418,1770325842739,-830.04186855,0.00034757,120]
[404603419,1770325842749,-585.98,0.00034757,10]
[404603420,1770325842759,-585.98,0.00034757,10]
[404603421,1770325842768,-585.98,0.00034757,10]
[404603422,1770325842777,-585.98,0.00034757,10]
[404603423,1770325842787,-585.98,0.00034757,10]
[404603424,1770325842796,-586.06652437,0.00034757,10]
[404603425,1770325842806,-500.0,0.00034757,7]
[404603426,1770325842820,-500.0,0.00034757,7]
[404603427,1770325842830,-500.0,0.00034757,7]
[404603428,1770325842840,-500.0,0.00034757,7]
[404603429,1770325842849,-459.95509298,0.00034757,7]
[404603430,1770325842859,-885.56,0.00034757,120]
[404603431,1770325842868,-885.56,0.00034757,120]
[404603432,1770325842878,-885.56,0.00034757,120]
[404603433,1770325842887,-885.56,0.00034757,120]
[404603434,1770325842897,-885.56,0.00034757,120]
[404603435,1770325842907,-885.70854639,0.00034757,120]
[404603436,1770325842916,-348133.2132748,0.00034758,2]
[404603437,1770325842926,-500.0,0.000348,2]
[404603438,1770325842935,-500.0,0.000348,2]
[404603439,1770325842944,-500.0,0.000348,2]
[404603440,1770325842953,-500.0,0.000348,2]
[404603441,1770325842962,-500.0,0.000348,2]
[404603442,1770325842971,-500.0,0.000348,2]
[404603443,1770325842980,-500.0,0.000348,2]
[404603444,1770325842992,-500.0,0.000348,2]
[404603445,1770325843001,-500.0,0.000348,2]
[404603446,1770325843011,-500.0,0.000348,2]
[404603447,1770325843020,-447.3913417,0.00034978,2]
[404603448,1770325843029,-160.0,0.00035,120]
[404603449,1770325843039,-150.55,0.000355,14]
[404603450,1770325843048,-200.0,0.000355,11]
[404603451,1770325843058,-500.0,0.00035616,120]
[404603452,1770325843073,-163.05,0.000357,14]
[404603453,1770325843083,-161.0,0.0003588,120]
[404603454,1770325843094,-917.0,0.00035907,2]
[404603455,1770325843103,-2446.0,0.00035907,2]
[404603456,1770325843113,-3254.0,0.00035907,2]
[404603457,1770325843122,-562.97380227,0.00035942,8]
[404603458,1770325843132,-150.0,0.00036101,2]
[404603459,1770325843143,-507.0,0.00036146,18]
[404603460,1770325843153,-814.74,0.000362,2]
[404603461,1770325843162,-463.94482134,0.00036347,2]
[404603462,1770325843171,-500.0,0.0003665,120]
[404603463,1770325843181,-556.967146,0.0003665,120]
[404603464,1770325843191,-2000.0,0.00037,2]
[404603465,1770325843200,-15668.85,0.00037,2]
[404603466,1770325843209,-2838.0,0.0003726,11]
[404603467,1770325843219,-716.97946142,0.00037299,31]
[404603468,1770325843228,-2000.0,0.00037299,31]
[404603469,1770325843237,-163.05,0.000373,14]
[404603470,1770325843247,-168.3888056,0.00037487,30]
[404603471,1770325843256,-691.39774486,0.00037487,30]
[404603472,1770325843265,-2000.0,0.00037487,30]
[404603473,1770325843275,-208.0,0.000375,2]
[404603474,1770325843284,-178.22,0.000375,14]
[404603475,1770325843293,-200.0,0.000375,15]
[404603476,1770325843302,-200.0,0.00037547,48]
[404603477,1770325843317,-207.4,0.00037547,48]
[404603478,1770325843326,-189.54725985,0.00037547,48]
[404603479,1770325843335,-162.380719,0.00037547,48]
[404603480,1770325843345,-666.72878,0.00037547,48]
[404603481,1770325843354,-2000.0,0.00037547,48]
[404603482,1770325843364,-507.0,0.00037659,20]
[404603483,1770325843374,-1000.0,0.000377,2]
[404603484,1770325843383,-150.55,0.000377,14]
[404603485,1770325843393,-481.11077973,0.00037716,2]
[404603486,1770325843403,-444.556,0.00038016,50]
[404603487,1770325843411,-4698.518,0.00038016,50]
[404603488,1770325843421,-151.0,0.00038016,31]
[404603489,1770325843430,-151.0,0.00038016,31]
[404603490,1770325843440,-250.0,0.00038082,60]
[404603491,1770325843449,-194.5945355,0.00038082,60]
[404603492,1770325843460,-500.0,0.00038356,120]
[404603493,1770325843469,-814.74,0.000386,30]
[404603494,1770325843479,-15668.85,0.000386,14]
[404603495,1770325843488,-151.0,0.000386,120]
[404603496,1770325843498,-151.0,0.000386,120]
[404603497,1770325843507,-150.0,0.0003861,30]
[404603498,1770325843517,-2078.27978345,0.00038683,2]
[404603499,1770325843526,-300.0,0.00038692,10]
[404603500,1770325843535,-666.0,0.00038692,30]
[404603501,1770325843545,-348133.2132748,0.00038693,2]
[404603502,1770325843554,-155.134233,0.00038693,120]
[404603503,1770325843568,-155.134233,0.00038693,120]
[404603504,1770325843578,-155.134233,0.00038693,120]
[404603505,1770325843587,-155.134233,0.00038693,120]
[404603510,1770325843735,-162.355824,0.00038693,120]
[404603511,1770325843764,-187.179629,0.00038693,120]
[404603512,1770325843774,-187.179629,0.00038693,120]
[404603513,1770325843783,-187.179629,0.00038693,120]
[404603514,1770325843793,-187.179629,0.00038693,120]
[404603515,1770325843803,-151.0,0.00038693,120]
[404603516,1770325843815,-188.810202,0.00038693,120]
[404603517,1770325843824,-151.0,0.00038693,30]
[404603518,1770325843834,-2085.41132862,0.00038836,5]
[404603519,1770325843844,-200.0,0.000389,14]
[404603520,1770325843853,-200.0,0.000389,14]
[404603521,1770325843863,-2828.0,0.00038903,11]
[404603522,1770325843873,-917.0,0.00038907,2]
[404603523,1770325843882,-2446.0,0.00038907,2]
[404603524,1770325843892,-1283.987,0.00038907,2]
[404603525,1770325843901,-16812.71762064,0.00038933,5]
[404603526,1770325843911,-180.90687264,0.0003899,2]
[404603527,1770325843920,-163.05,0.00039,14]
[404603528,1770325843930,-151.0,0.00039041,120]
[404603529,1770325843939,-154.654234,0.00039041,120]
[404603530,1770325843948,-577.52122263,0.00039085,2]
[404603531,1770325843958,-507.0,0.00039171,21]
[404603532,1770325843967,-150.55,0.000394,14]
[404603533,1770325843976,-15668.85,0.000394,2]
[404603534,1770325843985,-5800.0,0.00039498,14]
[404603535,1770325843994,-202.00151313,0.0003951,7]
[404603536,1770325844003,-150.0,0.0003951,7]
[404603537,1770325844012,-150.0,0.0003951,7]
[404603538,1770325844021,-150.0,0.0003951,7]
[404603539,1770325844030,-150.0,0.0003951,7]
[404603540,1770325844039,-150.0,0.0003951,7]
[404603541,1770325844048,-150.0,0.0003951,7]
[404603542,1770325844057,-150.0,0.0003951,7]
[404603543,1770325844071,-150.0,0.0003951,7]
[404603544,1770325844080,-150.0,0.0003951,7]
[404603545,1770325844089,-150.0,0.0003951,7]
[404603546,1770325844099,-150.0,0.0003951,7]
[404603547,1770325844108,-150.0,0.0003951,7]
[404603548,1770325844118,-150.0,0.0003951,7]
[404603549,1770325844128,-150.0,0.0003951,7]
[404603550,1770325844137,-150.0,0.0003951,7]
[404603551,1770325844150,-150.0,0.00039566,7]
[404603552,1770325844159,-293.99630296,0.00039582,2]
[404603553,1770325844169,-150.0,0.00039594,7]
[404603554,1770325844178,-15668.85,0.000396,14]
[404603555,1770325844187,-150.0,0.00039605,7]
[404603556,1770325844197,-150.0,0.00039623,7]
[404603557,1770325844207,-150.0,0.00039623,7]
[404603558,1770325844216,-150.0,0.00039647,7]
[404603559,1770325844226,-150.0,0.00039656,7]
[404603560,1770325844236,-150.0,0.00039679,7]
[404603561,1770325844246,-150.0,0.00039679,7]
[404603562,1770325844255,-150.0,0.00039686,7]
[404603563,1770325844264,-150.0,0.00039701,7]
[404603564,1770325844274,-369.96883972,0.00039704,2]
[404603565,1770325844284,-300.0,0.00039704,2]
[404603566,1770325844294,-300.0,0.00039704,2]
[404603567,1770325844303,-300.0,0.00039704,2]
[404603568,1770325844316,-300.0,0.00039704,2]
[404603569,1770325844326,-300.0,0.00039704,2]
[404603570,1770325844336,-516.59665377,0.00039704,2]
[404603571,1770325844345,-305.06087838,0.00039704,2]
[404603572,1770325844355,-300.0,0.00039704,2]
[404603573,1770325844365,-300.0,0.00039704,2]
[404603574,1770325844374,-300.0,0.00039704,2]
[404603575,1770325844383,-300.0,0.00039704,2]
[404603576,1770325844393,-300.0,0.00039704,2]
[404603577,1770325844403,-300.0,0.00039704,2]
[404603578,1770325844413,-524.51028513,0.00039704,2]
[404603579,1770325844424,-300.0,0.00039704,2]
[404603580,1770325844434,-300.0,0.00039704,2]
[404603581,1770325844444,-300.0,0.00039704,2]
[404603582,1770325844453,-1077.88467578,0.00039704,2]
[404603583,1770325844463,-852.37048715,0.00039704,2]
[404603584,1770325844472,-304.90968821,0.00039704,2]
[404603585,1770325844481,-300.0,0.00039704,2]
[404603586,1770325844491,-881.05967192,0.00039704,2]
[404603587,1770325844500,-300.0,0.00039704,2]
[404603588,1770325844510,-300.0,0.00039704,2]
[404603589,1770325844520,-300.0,0.00039704,2]
[404603590,1770325844529,-300.0,0.00039704,2]
[404603591,1770325844538,-306.08629653,0.00039704,2]
[404603592,1770325844547,-300.0,0.00039704,2]
[404603593,1770325844557,-457.00989845,0.00039704,2]
[404603594,1770325844572,-150.0,0.00039711,2]
[404603595,1770325844582,-291.67418347,0.00039725,2]
[404603596,1770325844592,-214.178867,0.00039726,120]
[404603597,1770325844602,-151.0,0.00039726,2]
[404603598,1770325844612,-151.0,0.00039726,2]
[404603599,1770325844622,-151.0,0.00039726,2]
[404603600,1770325844631,-235.165049,0.00039726,120]
[404603601,1770325844642,-280.679997,0.00039726,120]
[404603602,1770325844652,-150.0,0.00039735,7]
[404603603,1770325844662,-150.0,0.00039735,7]
[404603604,1770325844672,-150.0,0.00039763,7]
[404603605,1770325844682,-150.0,0.00039784,7]
[404603606,1770325844691,-150.0,0.00039791,7]
[404603607,1770325844702,-150.0,0.00039796,7]
[404603608,1770325844711,-150.0,0.00039803,7]
[404603609,1770325844721,-150.0,0.00039848,7]
[404603610,1770325844732,-150.0,0.00039848,7]
[404603611,1770325844742,-150.0,0.00039848,7]
[404603612,1770325844751,-150.0,0.00039848,7]
[404603613,1770325844761,-200.0,0.00039852,2]
[404603614,1770325844771,-150.0,0.00039861,7]
[404603615,1770325844781,-150.0,0.00039892,7]
[404603616,1770325844790,-150.0,0.00039904,7]
[404603617,1770325844800,-150.0,0.00039922,7]
[404603618,1770325844812,-150.0,0.00039932,7]
[404603619,1770325844824,-150.0,0.00039949,7]
[404603620,1770325844834,-150.0,0.00039949,7]
[404603621,1770325844844,-150.0,0.0003996,7]
[404603622,1770325844853,-150.0,0.0003996,7]
[404603623,1770325844862,-150.0,0.00039987,7]
[404603624,1770325844872,-500.0,0.00039999,31]
[404603625,1770325844882,-500.0,0.00039999,31]
[404603626,1770325844891,-500.0,0.00039999,31]
[404603627,1770325844900,-500.0,0.00039999,31]
[404603628,1770325844911,-190.30889596,0.00039999,31]
[404603629,1770325844921,-500.0,0.00039999,31]
[404603630,1770325844931,-452.61297195,0.00039999,31]
[404603631,1770325844941,-500.0,0.00039999,31]
[404603632,1770325844950,-500.0,0.00039999,31]
[404603633,1770325844960,-500.0,0.00039999,31]
[404603634,1770325844971,-500.0,0.00039999,31]
[404603635,1770325844981,-500.0,0.00039999,31]
[404603636,1770325844990,-604.83970727,0.00039999,31]
[404603637,1770325845000,-500.0,0.00039999,31]
[404603638,1770325845010,-379.5514919,0.00039999,31]
[404603639,1770325845020,-500.0,0.00039999,31]
[404603640,1770325845029,-500.0,0.00039999,31]
[404603641,1770325845039,-500.0,0.00039999,31]
[404603642,1770325845048,-500.0,0.00039999,31]
[404603643,1770325845057,-500.0,0.00039999,31]
[404603644,1770325845076,-500.0,0.00039999,31]
[404603645,1770325845086,-200.0,0.00039999,31]
[404603646,1770325845095,-500.0,0.00039999,31]
[404603648,1770325845105,-500.0,0.00039999,31]
[404603650,1770325845115,-500.0,0.00039999,31]
[404603652,1770325845125,-500.0,0.00039999,31]
[404603653,1770325845134,-814.74,0.0004,30]
[404603655,1770325845145,-250.0,0.0004,45]
[404603657,1770325845155,-658.2,0.0004,120]
[404603658,1770325845164,-213.25,0.0004,120]
[404603660,1770325845174,-347.3,0.0004,120]
[404603661,1770325845183,-554.41,0.0004,120]
[404603662,1770325845192,-250.0,0.0004,45]
[404603663,1770325845202,-154.0,0.0004,120]
[404603664,1770325845211,-250.0,0.0004,45]
[404603665,1770325845221,-250.0,0.0004,45]
[404603666,1770325845231,-151.0,0.0004,120]
[404603667,1770325845239,-160.0,0.0004,7]
[404603668,1770325845249,-150.0,0.00040017,7]
[404603669,1770325845259,-150.0,0.00040017,7]
[404603670,1770325845268,-150.0,0.00040037,7]
[404603671,1770325845278,-150.0,0.00040059,7]
[404603672,1770325845287,-150.0,0.00040073,7]
[404603673,1770325845296,-150.0,0.00040073,7]
[404603674,1770325845306,-150.0,0.00040083,7]
[404603675,1770325845321,-150.0,0.00040095,7]
[404603676,1770325845331,-150.0,0.00040101,7]
[404603677,1770325845340,-150.0,0.00040129,7]
[404603678,1770325845349,-150.0,0.00040137,7]
[404603679,1770325845359,-150.0,0.00040178,7]
[404603680,1770325845369,-150.0,0.00040185,7]
[404603681,1770325845379,-150.0,0.00040185,7]
[404603682,1770325845388,-150.0,0.00040185,7]
[404603683,1770325845397,-150.0,0.00040185,7]
[404603684,1770325845406,-150.0,0.00040196,7]
[404603685,1770325845415,-150.0,0.00040212,7]
[404603686,1770325845425,-150.0,0.00040242,7]
[404603687,1770325845435,-150.0,0.00040242,7]
[404603688,1770325845444,-200.0,0.00040251,2]
[404603689,1770325845453,-150.0,0.0004027,7]
[404603690,1770325845463,-150.0,0.00040273,7]
[404603691,1770325845473,-151.0,0.00040274,120]
[404603692,1770325845482,-150.0,0.00040298,7]
[404603693,1770325845491,-150.0,0.00040298,7]
[404603694,1770325845500,-178.22,0.000403,14]
[404603696,1770325845510,-150.0,0.00040333,7]
[404603697,1770325845519,-150.0,0.00040354,7]
[404603698,1770325845528,-150.0,0.00040354,7]
[404603699,1770325845537,-300.0,0.00040365,10]
[404603700,1770325845547,-666.0,0.00040365,30]
[404603701,1770325845556,-86819.8074217,0.00040366,2]
[404603702,1770325845570,-150.0,0.00040369,7]
[404603703,1770325845579,-150.0,0.00040388,7]
[404603704,1770325845588,-150.0,0.00040388,7]
[404603705,1770325845598,-150.0,0.00040388,7]
[404603706,1770325845607,-150.0,0.00040388,7]
[404603707,1770325845617,-163.05,0.000404,14]
[404603708,1770325845626,-150.0,0.00040411,7]
[404603709,1770325845635,-150.0,0.00040411,7]
[404603710,1770325845644,-150.0,0.00040439,7]
[404603711,1770325845654,-150.0,0.00040464,7]
[404603712,1770325845664,-150.0,0.00040467,7]
[404603714,1770325845673,-150.0,0.0004047,7]
[404603715,1770325845683,-250.0,0.000405,45]
[404603717,1770325845692,-250.0,0.000405,45]
[404603719,1770325845701,-250.0,0.000405,45]
[404603720,1770325845711,-250.0,0.000405,45]
[404603721,1770325845720,-2000.0,0.000405,7]
[404603722,1770325845729,-150.0,0.00040523,7]
[404603723,1770325845739,-150.0,0.00040523,7]
[404603724,1770325845748,-150.0,0.00040523,7]
[404603725,1770325845757,-150.0,0.00040523,7]
[404603726,1770325845767,-150.0,0.00040534,7]
[404603727,1770325845776,-150.0,0.0004056,7]
[404603728,1770325845787,-150.0,0.00040564,7]
[404603730,1770325845798,-150.0,0.00040579,7]
[404603731,1770325845807,-151.0,0.000406,120]
[404603732,1770325845822,-150.0,0.00040607,7]
[404603733,1770325845832,-150.0,0.00040607,7]
[404603734,1770325845842,-150.0,0.00040607,7]
[404603735,1770325845852,-150.0,0.00040636,7]
[404603736,1770325845862,-150.0,0.00040636,7]
[404603737,1770325845872,-200.0,0.00040653,2]
[404603738,1770325845882,-150.0,0.00040655,7]
[404603739,1770325845891,-150.0,0.00040681,7]
[404603740,1770325845901,-507.0,0.00040683,23]
[404603741,1770325845911,-150.0,0.00040692,7]
[404603742,1770325845920,-150.0,0.00040692,7]
[404603743,1770325845931,-2000.0,0.000407,2]
[404603744,1770325845940,-150.0,0.00040739,7]
[404603745,1770325845950,-150.0,0.00040745,7]
[404603746,1770325845960,-150.0,0.00040748,7]
[404603747,1770325845969,-150.0,0.00040748,7]
[404603748,1770325845978,-150.0,0.00040751,7]
[404603749,1770325845988,-150.0,0.00040764,7]
[404603750,1770325845997,-150.0,0.00040776,7]
[404603751,1770325846007,-150.0,0.00040804,7]
[404603752,1770325846016,-150.0,0.00040827,7]
[404603753,1770325846025,-150.0,0.00040827,7]
[404603754,1770325846034,-1000.0,0.00040846,7]
[404603755,1770325846043,-150.0,0.00040846,7]
[404603756,1770325846054,-150.0,0.00040861,7]
[404603757,1770325846066,-150.0,0.00040861,7]
[404603758,1770325846079,-150.0,0.00040861,7]
[404603759,1770325846088,-150.0,0.00040861,7]
[404603760,1770325846098,-150.0,0.00040882,7]
[404603761,1770325846108,-154.0,0.000409,120]
[404603762,1770325846117,-150.0,0.00040915,7]
[404603763,1770325846128,-150.0,0.00040917,7]
[404603764,1770325846137,-150.0,0.00040942,7]
[404603765,1770325846148,-150.0,0.00040945,7]
[404603766,1770325846157,-300.060507,0.00040957,103]
[404603767,1770325846168,-150.0,0.00040973,7]
[404603768,1770325846178,-150.0,0.00040973,7]
[404603769,1770325846187,-150.0,0.00040973,7]
[404603771,1770325846196,-11334.0,0.00041,120]
[404603773,1770325846205,-250.0,0.00041,45]
[404603774,1770325846215,-11334.0,0.00041,120]
[404603776,1770325846224,-524.08849142,0.00041,30]
[404603778,1770325846234,-250.0,0.00041,45]
[404603780,1770325846243,-250.0,0.00041,45]
[404603782,1770325846252,-419.59733973,0.00041,2]
[404603784,1770325846261,-280.52548186,0.00041,3]
[404603786,1770325846271,-10000.0,0.00041,120]
[404603788,1770325846280,-180.0,0.00041,90]
[404603789,1770325846289,-150.0,0.00041019,7]
[404603790,1770325846299,-150.0,0.0004103,7]
[404603791,1770325846308,-150.0,0.0004103,7]
[404603792,1770325846321,-150.0,0.00041037,7]
[404603793,1770325846330,-200.0,0.0004106,2]
[404603794,1770325846339,-300.0,0.00041068,22]
[404603795,1770325846349,-150.0,0.00041086,7]
[404603799,1770325846483,-150.0,0.00041086,7]
[404603800,1770325846507,-150.0,0.0004109,7]
[404603801,1770325846516,-197.77722676,0.00041095,120]
[404603802,1770325846526,-1169.14778439,0.00041095,120]
[404603803,1770325846536,-968.48311065,0.00041096,31]
[404603804,1770325846545,-500.0,0.00041096,120]
[404603805,1770325846555,-500.0,0.00041096,60]
[404603806,1770325846568,-680.0,0.00041096,60]
[404603807,1770325846578,-800.0,0.00041096,120]
[404603808,1770325846588,-2004.53716037,0.00041096,10]
[404603809,1770325846598,-490.0,0.00041096,30]
[404603810,1770325846607,-340.0,0.00041096,120]
[404603811,1770325846617,-836.0,0.00041096,120]
[404603812,1770325846626,-805.0,0.00041096,120]
[404603813,1770325846636,-288.0,0.00041096,60]
[404603814,1770325846646,-500.0,0.00041096,31]
[404603815,1770325846656,-500.0,0.00041096,31]
[404603816,1770325846666,-413.65413303,0.00041096,31]
[404603817,1770325846676,-168.89284628,0.00041096,120]
[404603818,1770325846686,-150.0,0.00041096,60]
[404603819,1770325846695,-150.0,0.00041114,30]
[404603820,1770325846705,-150.0,0.0004112,30]
[404603821,1770325846714,-150.0,0.00041132,30]
[404603822,1770325846722,-150.0,0.00041142,30]
[404603823,1770325846732,-154.90998581,0.00041151,60]
[404603825,1770325846741,-150.0,0.00041156,30]
[404603826,1770325846751,-150.0,0.00041198,30]
[404603827,1770325846760,-150.0,0.00041198,30]
[404603828,1770325846770,-150.0,0.00041198,30]
[404603829,1770325846780,-150.0,0.00041198,30]
[404603830,1770325846790,-500.0,0.00041212,120]
[404603831,1770325846800,-839.0,0.0004122,11]
[404603832,1770325846812,-150.0,0.00041228,30]
[404603833,1770325846821,-200.0,0.00041247,7]
[404603834,1770325846831,-150.0,0.00041255,30]
[404603835,1770325846841,-150.0,0.00041266,30]
[404603836,1770325846851,-150.0,0.00041266,30]
[404603837,1770325846861,-150.0,0.00041266,30]
[404603838,1770325846871,-150.0,0.00041266,30]
[404603839,1770325846880,-156.57,0.00041276,120]
[404603840,1770325846890,-150.0,0.00041283,30]
[404603841,1770325846899,-150.0,0.00041293,30]
[404603842,1770325846908,-151.0,0.000413,120]
[404603843,1770325846917,-151.8,0.00041307,120]
[404603844,1770325846927,-150.0,0.00041311,30]
[404603845,1770325846936,-150.0,0.00041311,30]
[404603846,1770325846946,-150.0,0.00041323,30]
[404603847,1770325846955,-150.0,0.00041367,30]
[404603848,1770325846965,-150.0,0.00041367,30]
[404603849,1770325846975,-500.0,0.00041369,60]
[404603850,1770325846984,-800.0,0.0004137,120]
[404603851,1770325846993,-150.0,0.00041391,30]
[404603852,1770325847003,-151.8,0.00041407,120]
[404603853,1770325847012,-150.0,0.00041412,30]
[404603854,1770325847021,-150.0,0.00041419,30]
[404603855,1770325847031,-150.0,0.00041424,30]
[404603856,1770325847040,-150.0,0.00041424,30]
[404603857,1770325847049,-150.0,0.00041431,30]
[404603858,1770325847059,-150.0,0.00041442,30]
[404603859,1770325847073,-150.0,0.00041452,30]
[404603860,1770325847082,-200.0,0.0004147,2]
[404603861,1770325847092,-150.0,0.0004148,30]
[404603862,1770325847101,-250.0,0.000415,45]
[404603863,1770325847112,-250.0,0.000415,45]
[404603864,1770325847121,-250.0,0.000415,45]
[404603865,1770325847131,-163.05,0.000415,14]
[404603866,1770325847142,-151.8,0.00041507,120]
[404603867,1770325847151,-150.0,0.00041514,30]
[404603868,1770325847161,-150.0,0.00041536,30]
[404603869,1770325847171,-150.0,0.00041536,30]
[404603870,1770325847180,-150.0,0.00041536,30]
[404603871,1770325847190,-150.0,0.00041536,30]
[404603872,1770325847199,-150.0,0.00041559,30]
[404603873,1770325847209,-150.0,0.00041568,30]
[404603874,1770325847219,-150.0,0.00041592,30]
[404603875,1770325847228,-151.8,0.00041607,120]
[404603876,1770325847238,-150.0,0.0004161,30]
[404603877,1770325847247,-150.0,0.00041617,30]
[404603878,1770325847257,-150.0,0.00041621,30]
[404603879,1770325847266,-500.0,0.00041643,60]
[404603880,1770325847275,-600.0,0.00041643,60]
[404603881,1770325847284,-800.0,0.00041644,120]
[404603882,1770325847294,-150.0,0.00041649,30]
[404603883,1770325847304,-150.0,0.00041649,30]
[404603884,1770325847318,-154.0,0.000417,120]
[404603885,1770325847327,-150.0,0.00041705,30]
[404603886,1770325847336,-150.0,0.00041705,30]
[404603887,1770325847346,-150.0,0.00041705,30]
[404603888,1770325847355,-150.0,0.00041705,30]
[404603889,1770325847364,-150.0,0.00041705,30]
[404603890,1770325847374,-150.0,0.00041705,30]
[404603891,1770325847383,-150.0,0.00041705,30]
[404603892,1770325847393,-150.0,0.00041705,30]
[404603893,1770325847402,-151.8,0.00041707,120]
[404603894,1770325847411,-904.0,0.00041718,11]
[404603895,1770325847420,-19372.117534,0.00041749,2]
[404603896,1770325847429,-150.0,0.00041761,30]
[404603897,1770325847439,-150.0,0.00041761,30]
[404603898,1770325847448,-150.0,0.00041789,30]
[404603899,1770325847458,-150.0,0.00041793,30]
[404603900,1770325847467,-150.0,0.000418,30]
[404603901,1770325847476,-151.80944653,0.00041807,120]
[404603902,1770325847486,-150.0,0.00041818,30]
[404603903,1770325847497,-1177.0,0.00041818,11]
[404603904,1770325847506,-839.0,0.00041826,11]
[404603905,1770325847516,-150.0,0.00041842,30]
[404603906,1770325847525,-150.0,0.00041851,30]
[404603907,1770325847535,-150.0,0.00041874,30]
[404603908,1770325847544,-150.0,0.00041874,30]
[404603909,1770325847553,-150.0,0.00041874,30]
[404603910,1770325847566,-150.0,0.00041874,30]
[404603911,1770325847575,-150.0,0.00041896,30]
[404603912,1770325847585,-151.0,0.000419,120]
[404603913,1770325847595,-2000.0,0.000419,7]
[404603914,1770325847604,-2446.0,0.00041907,2]
[404603915,1770325847613,-500.0,0.00041917,60]
[404603916,1770325847623,-2500.0,0.00041917,120]
[404603917,1770325847632,-877.3313271,0.00041917,120]
[404603918,1770325847641,-800.0,0.00041918,120]
[404603919,1770325847651,-150.0,0.0004193,30]
[404603920,1770325847662,-150.0,0.00041958,30]
[404603921,1770325847671,-150.0,0.00041968,30]
[404603922,1770325847680,-150.0,0.00041979,30]
[404603923,1770325847689,-150.0,0.00041986,30]
[404603924,1770325847699,-150.0,0.00041986,30]
[404603925,1770325847708,-150.0,0.00041991,30]
[404603926,1770325847718,-150.0,0.00041998,30]
[404603927,1770325847727,-1223.266,0.00042,30]
[404603928,1770325847737,-417.0,0.00042,30]
[404603929,1770325847746,-150.0,0.00042019,30]
[404603930,1770325847755,-150.0,0.00042043,30]
[404603931,1770325847765,-150.0,0.00042043,30]
[404603932,1770325847774,-150.0,0.00042087,30]
[404603933,1770325847784,-150.0,0.00042099,30]
[404603934,1770325847794,-150.0,0.00042099,30]
[404603935,1770325847803,-150.0,0.00042117,30]
[404603936,1770325847816,-150.0,0.00042127,30]
[404603937,1770325847826,-163.0,0.00042138,16]
[404603938,1770325847837,-150.0,0.00042144,30]
[404603939,1770325847846,-150.0,0.00042144,30]
[404603940,1770325847856,-150.0,0.00042144,30]
[404603941,1770325847866,-150.0,0.00042144,30]